Cogmind - Beta 17.1 @@@ ROGUE MODE // 2026.09.14 @ 18:50:40 Player: H3-MLN Result: Destroyed by Guncrazy with Battle Rifle Performance ------------- Evolutions (0) 0 Regions Visited (2) 400 Robots Destroyed (34) 170 Value Destroyed (875) 875 Prototype IDs (17) 340 Alien Tech Used (0) 0 Bonus (-96) -96 TOTAL SCORE: 1689 Bonus ------- Friendly Fire -96 Cogmind --------- Core Integrity 0/250 Matter 112/300 Energy 192/200 System Corruption 0% Temperature Cool (0) Movement Walking (200) Ox1 Location -10/Subcaves Parts ------- > --- POWER (1) -------- Subdweller Power Source > --- PROPULSION (2) --- Cargo Legs > --- UTILITY (2+1) ---- High-capacity Storage Unit (+) Makeshift Light Armor Plating > --- WEAPON (2) ------- Autogun Subdweller Machine Gun > --- INVENTORY (20) --- Ion Engine Light Treads Light Treads Light Treads Large Storage Unit Medium Matter Pod (84) Hacking Suite Trap Extractor (0/4) Trap Extractor (0/4) Trap Extractor (3/4 Explosive) Improved EM Shotgun Subdweller Laser Autogun Autogun Autogun Subdweller Shrapnel Launcher Datajack Mining Laser Peak State ------------ > --- POWER ------------ Subdweller Power Source > --- PROPULSION ------- Cargo Legs > --- UTILITY ---------- High-capacity Storage Unit Scrap Shield Shield Generator > --- WEAPON ----------- Subdweller Beam Cannon Autogun > --- INVENTORY -------- Ion Engine Light Treads Large Storage Unit Medium Matter Pod Makeshift Light Armor Plating Hacking Suite Trap Extractor Trap Extractor Trap Extractor Improved EM Shotgun Subdweller Laser Autogun Autogun Autogun Subdweller Machine Gun Subdweller Shrapnel Launcher Datajack Mining Laser [Rating: 32] Favorites ----------- Power Subdweller Power Source Engine Subdweller Power Source Power Core Light Nuclear Core Propulsion Light Treads Treads Light Treads Leg Cargo Legs Utility Shield Generator Device Shield Generator Storage High-capacity Storage Unit Protection Scrap Shield Weapon Autogun Energy Gun Subdweller Laser Energy Cannon Subdweller Beam Cannon Ballistic Gun Autogun Special Weapon Mining Laser Special Melee Weapon Datajack Build | -11 -10 -10 ------- Run | Yrd Mat Sub Slots Evolved . | . . . Power . | . . . Propulsion . | . . . Utility . | . . . Weapon . | . . . Parts Attached 34 | 7 13 14 Power 5 | 1 2 2 Engine 4 | 1 1 2 Core 1 | . 1 . Reactor . | . . . Propulsion 4 | 2 . 2 Treads 3 | 2 . 1 Leg 1 | . . 1 Wheel . | . . . Hover . | . . . Flight . | . . . Utility 9 | 2 4 3 Device 4 | 1 2 1 Storage 3 | 1 2 . Processor . | . . . Hackware . | . . . Protection 2 | . . 2 Artifact . | . . . Weapon 16 | 2 7 7 Energy Gun 6 | 1 1 4 Energy Cannon 2 | . 1 1 Ballistic Gun 6 | 1 4 1 Ballistic Cannon . | . . . Launcher . | . . . Special Weapon 1 | . . 1 Impact Weapon . | . . . Slashing Weapon . | . . . Piercing Weapon . | . . . Special Melee Weapon 1 | . 1 . Unidentified Prototypes 1 | . 1 . Parts Lost 4 | . . 4 Power . | . . . Propulsion 1 | . . 1 Utility 3 | . . 3 Weapon . | . . . Highest Loss Streak 2 | . . 2 To Critical Strikes . | . . . Average Backups 16 | 2 16 18 Power 1 | . 1 1 Propulsion 1 | 1 1 1 Utility 6 | . 6 7 Weapon 6 | . 6 7 Tool/Special . | . . . Unused Backups 16 | . 6 10 Power 1 | . . 1 Propulsion 3 | . 2 1 Utility 6 | . 1 5 Weapon 6 | . 3 3 Tool/Special . | . . . Average Slot Usage (%) 96 | . 99 93 Engine 9 | . 6 13 Core 3 | . 7 . Treads 24 | . 28 20 Leg 1 | . . 3 Device 13 | . 14 13 Storage 13 | . 14 13 Protection 1 | . . 3 Energy Gun 3 | . . 6 Energy Cannon 3 | . 2 5 Ballistic Gun 18 | . 24 12 Peak Build Rating 32 | 7 16 32 Average Rating 15 | 4 12 19 On Entrance 6 | . 7 13 Avg Prop Armor Cover (%) . | . . . Naked Turns . | . . . Heaviest Build 76 | 13 53 76 Greatest Support 55 | 40 40 55 Greatest Overweight (x) 19 | . 1 19 Average Overweight (x) . | . . 1 Largest Inventory Capacity 20 | 8 20 20 Average Capacity 17 | 6 16 20 Most Carried 20 | 4 20 20 Average Carried 17 | 2 16 19 Final Capacity 20 | 8 20 20 Final Carried 20 | 4 20 18 Class Distribution -------------------- 87% | Mutant 12% | Subdweller-Mutant Dominant Class ---------------- Mutant | -10/Materials Mutant | -10/Subcaves Resources | -11 -10 -10 ----------- Run | Yrd Mat Sub Matter Collected 1335 | 266 601 468 Remotely . | . . . Salvage Created 1474 | 95 801 578 Parts 89 | 6 44 39 Haulers Intercepted 2 | . 2 . Recyclers Shooed 1 | . 1 . Parts Field Recycled . | . . . Retrieved Matter . | . . . Parts Self-Destructed 7 | . . 7 Prevented . | . . . Parts Restored . | . . . Kills | -11 -10 -10 ------- Run | Yrd Mat Sub Combat Hostiles Destroyed 22 | . 12 10 Guns 15 | . 8 7 Cannons 5 | . 3 2 AOE 1 | . 1 . Classes Destroyed 12 | 2 7 3 Worker 2 | . 2 . Tunneler 1 | 1 . . Hauler 2 | . 2 . Recycler 2 | 1 1 . Mechanic 1 | . 1 . Operator 3 | . 3 . Watcher 2 | . 2 . Swarmer 2 | . 2 . Grunt 12 | . 10 2 Artisan 1 | . . 1 Subdweller 7 | . . 7 Botcube 1 | . . 1 Best Kill Streak 4 | 2 4 2 Combat Bots Only 4 | . 4 2 Max Kills in Single Turn 2 | 1 2 1 Gunslinging . | . . . Exploded 1 | . 1 . Melee . | . . . Uniques/NPCs Destroyed . | . . . Combat | -11 -10 -10 -------- Run | Yrd Mat Sub Hostile Shots Fired 138 | . 44 94 Missed 38 | . 18 20 Hits 100 | . 26 74 Projectile 100 | . 26 74 AOE 2 | . . 2 Critical Strikes 7 | . . 7 Damage Taken 1199 | . 261 938 Core 260 | . 38 222 Absorbed by Shields 396 | . 52 344 Core Remaining (%) 100 | 100 . . Volleys Fired 161 | 6 56 99 Largest 2 | 2 2 2 Hottest 103 | 60 80 103 Shots Fired 276 | 12 112 152 Gun 231 | 12 102 117 Cannon 38 | . 10 28 Launcher . | . . . Special 7 | . . 7 Kinetic 171 | 6 100 65 Thermal 81 | . 10 71 Explosive . | . . . Electromagnetic 24 | 6 2 16 Robot Hit Streak 35 | 7 9 35 Robot Miss Streak 3 | 1 3 2 Penetration Max . | . . . Secondary Targets . | . . . Shots Hit Robots 181 | 8 64 109 Core Hits 64 | 3 30 31 Critical Kills 1 | . . 1 Critical Parts Destroyed . | . . . Critical Strikes 1 | . . 1 Meltdown 1 | . . 1 Melee Attacks 5 | . . 5 Impact . | . . . Slashing . | . . . Piercing . | . . . Sneak Attacks 5 | . . 5 Combat Hostiles . | . . . Follow-up Attacks . | . . . Damage Inflicted 3045 | 119 1041 1885 Guns 2720 | 119 967 1634 Cannons 321 | . 70 251 Explosions . | . . . Melee . | . . . Ramming 4 | . 4 . Kinetic 1897 | 66 951 880 Thermal 819 | . 70 749 Explosive . | . . . Electromagnetic 325 | 53 16 256 Impact . | . . . Slashing . | . . . Piercing . | . . . Highest Corruption . | . . . Average Corruption . | . . . Corruption Purged . | . . . Corruption Blocked . | . . . Overload Shots . | . . . Overflow Damage . | . . . Projectiles . | . . . Explosions . | . . . Melee . | . . . Knockbacks . | . . . Impact . | . . . Kinetic . | . . . Secondary . | . . . Self-Inflicted Damage . | . . . Shots . | . . . Rammed 2 | . 2 . Targets Rammed 2 | . 2 . Kicked . | . . . Crushed . | . . . Highest Temperature 150 | . 150 44 Average Temperature 18 | . 23 8 Received Heat Transfer 452 | . 110 342 Siege Activations . | . . . Martial Activations . | . . . Shielding Activations . | . . . Robots Disrupted . | . . . Combat Hostiles . | . . . Robots Corrupted . | . . . Combat Hostiles . | . . . Parts Fried 3 | . . 3 Impact Corruptions . | . . . Robots Melted 1 | . . 1 Combat Hostiles 1 | . . 1 Parts Melted 5 | . . 5 Heat Transferred 1131 | . 148 983 Parts Sabotaged . | . . . Parts Stolen . | . . . Parts Stripped . | . . . Power Chain Reactions . | . . . Alert | -11 -10 -10 ------- Run | Yrd Mat Sub Maximum Alert Level . | . . . Low Security (%) 100 | 100 100 . Level 1 . | . . . Level 2 . | . . . Level 3 . | . . . Level 4 . | . . . Level 5 . | . . . High Security . | . . . Max Security . | . . . Peak Influence 103 | 10 103 . Initial . | . . . Average 22 | . 24 . Influence Increases 481 | 10 421 50 Destroy 0b10 Robot/C 280 | . 240 40 Destroy 0b10 Robot/NC 65 | 10 55 . Destroy Leader 78 | . 68 10 Successful Hack 42 | . 42 . Disable Machine 15 | . 15 . Destroy Structure 1 | . 1 . Influence Decreases 481 | 10 421 50 Time Decay 471 | 10 421 40 Lost Part 10 | . . 10 Squads Dispatched 3 | . 3 . Investigation 1 | . 1 . Extermination . | . . . Reinforcement 2 | . 2 . Assault . | . . . Garrison . | . . . Intercept . | . . . Searches Triggered . | . . . Construction Impeded . | . . . Haulers Reinforced . | . . . Active Scanning Responses . | . . . Cargo Convoy Interrupts . | . . . Stealth | -11 -10 -10 --------- Run | Yrd Mat Sub Distress Signals 1 | . 1 . Communications Jammed . | . . . Distress Signals . | . . . Times Spotted 34 | . 23 11 Peak Tracking Total 5 | . 5 3 Tactical Retreats . | . . . Traps | -11 -10 -10 ------- Run | Yrd Mat Sub Traps Triggered 2 | . 1 1 Indirectly . | . . . Trap Hack Attempts 34 | . 34 . Triggered . | . . . Disarmed . | . . . Reprogrammed 3 | . 3 . Reused . | . . . Traps Extracted 3 | . 3 . Installed . | . . . Triggered . | . . . Most Traps Carried 3 | . 3 3 Machines | -11 -10 -10 ---------- Run | Yrd Mat Sub Machines Disabled 2 | . 1 1 Max in Single Turn 1 | . 1 1 Machines Repaired . | . . . Machines Dismantled . | . . . Machines Sabotaged . | . . . Overloaded Fab Kills . | . . . Hacking | -11 -10 -10 --------- Run | Yrd Mat Sub Machines Accessed 8 | . 7 1 Terminals 7 | . 7 . Fabricators . | . . . Repair Stations . | . . . Recycling Units . | . . . Scanalyzers . | . . . Garrison Access . | . . . Total Hacks 33 | . 24 9 Successful 22 | . 13 9 Failed 10 | . 10 . Catastrophic . | . . . Database Lockouts 1 | . 1 . Manual 22 | . 22 . Terminals 24 | . 24 . Fabricators . | . . . Repair Stations . | . . . Recycling Units . | . . . Scanalyzers . | . . . Garrison Access . | . . . Terminal Hacks 13 | . 4 9 Record 8 | . . 8 Part Schematic 1 | . 1 . Prototype ID Bank 1 | . 1 . Terminal Index 1 | . 1 . Registered Components 1 | . 1 . Proto ID Catalog 1 | . . 1 Fabricator Hacks . | . . . Repair Station Hacks . | . . . Recycling Unit Hacks . | . . . Scanalyzer . | . . . Garrison Access Hacks . | . . . Unauthorized Hacks 9 | . 9 . Terminals 9 | . 9 . Assimilate 1 | . 1 . Botnet 2 | . 2 . Operators 1 | . 1 . Skim 5 | . 5 . Fabricators . | . . . Repair Stations . | . . . Recycling Units . | . . . Scanalyzers . | . . . Garrison Access . | . . . Data Cores Recovered 1 | . 1 . Used . | . . . Hacking Detections 7 | . 7 . Full Trace Events . | . . . Feedback Events . | . . . Feedback Blocked . | . . . Robot Schematics Acquired . | . . . Robots Built . | . . . Authchips . | . . . Time . | . . . Total Robot Build Rating . | . . . Part Schematics Acquired 1 | . 1 . Parts Built . | . . . Authchips . | . . . Time . | . . . Total Part Build Rating . | . . . Part Studies Acquired . | . . . Parts Repaired . | . . . Time . | . . . Parts Recycled . | . . . Recycled Matter . | . . . Retrieved Matter . | . . . Retrieved Components . | . . . Parts Scanalyzed . | . . . Part Schematics Acquired . | . . . Parts Damaged . | . . . Bothacking | -11 -10 -10 ------------ Run | Yrd Mat Sub Used RIF Installer . | . . . Robots Hacked 1 | . . 1 Non-combat 1 | . . 1 Combat . | . . . Robot Hacks Applied 5 | . . 5 parse_system 5 | . . 5 Relay Couplers Released . | . . . Fabnet Peak Effective % . | . . . Robots Rewired . | . . . Allies Hacked . | . . . Hacks Repelled . | . . . Allies | -11 -10 -10 -------- Run | Yrd Mat Sub Total Allies . | . . . Largest Group . | . . . Highest-Rated Group . | . . . Highest-Rated Ally . | . . . Total Orders . | . . . Ally Attacks . | . . . Total Damage . | . . . Kills . | . . . Allies Corrupted . | . . . Allies Melted . | . . . Intel | -11 -10 -10 ------- Run | Yrd Mat Sub Active Infowar (turns) 403 | 35 368 . Seismic 403 | 35 368 . Robot Analysis Total . | . . . Derelict Logs Recovered 1 | . . 1 Drone Launches . | . . . Drone Recoveries . | . . . Exploration | -11 -10 -10 ------------- Run | Yrd Mat Sub Turns Passed 3863 | 162 1882 1819 Spaces Moved 1421 | 95 693 633 Core 20 | 19 . 1 Treads 1233 | 76 693 464 Legs 168 | . . 168 Wheels . | . . . Hover . | . . . Flight . | . . . Fastest Speed 50 | 50 160 200 Average Speed 207 | 138 196 230 Slowest Speed 1000 | 160 240 1000 Overloaded Moves . | . . . Propulsion Burnouts . | . . . Robots Hopped . | . . . Potential Cave-ins . | . . . Cave-ins Triggered . | . . . Exploration Rate (%) 46 | 6 93 40 Regions Visited 2 Branch Regions 1 Pre-discovered Areas 2 | . 1 1 Known Exits Taken . | . . . Unknown Exits Taken 2 | 1 1 . Scrap Searched 1 | . . 1 Spaces Dug 8 | . . 8 Terrain Destroyed 12 | . . 12 Melee . | . . . Projectile 12 | . . 12 AOE . | . . . Terrain Rammed . | . . . Walls Destroyed . | . . . Machines Disabled . | . . . Actions | -11 -10 -10 --------- Run | Yrd Mat Sub Total 2068 | 111 1122 835 Wait 336 | . 288 48 Move 1419 | 94 692 633 Hop . | . . . Pick Up 39 | 4 23 12 Fast Attach 13 | 7 2 4 Attach 5 | . . 5 Detach . | . . . Swap 23 | . 13 10 Drop 28 | . 12 16 Fire 161 | 6 56 99 Melee 5 | . . 5 Ram . | . . . Kick . | . . . Crush 2 | . 2 . Escape Stasis . | . . . Rewire . | . . . Trap 34 | . 34 . Miscellaneous 3 | . . 3 Route ------- -11/Scrapyard -10/Materials (discovered 5 exits: [*Mat x3] / [*Min] / *Sub) -10/Subcaves (discovered 3 exits: Mat x2 / [*Scr]) History --------- Turn | Location | Event 7 | -11/Scrapyard | Discovered new exit (range 15) 163 | -11/Scrapyard | Entered Materials 188 | -10/Materials | Central database locked down 308 | -10/Materials | Build established: Mutant 407 | -10/Materials | Discovered new exit (range 12) 600 | -10/Materials | Discovered new exit (range 15) 1240 | -10/Materials | Discovered new exit (range 16) 1707 | -10/Materials | Discovered new exit (range 15) 1728 | -10/Materials | Discovered new exit (range 11) 1756 | -10/Materials | Loaded intel: 25 non-interactive machine locations 1811 | -10/Materials | Learned location of Recycling (-7) 1856 | -10/Materials | Learned location of 2 exits from Subcaves 1891 | -10/Materials | Learned location of 1 exit from Storage 1918 | -10/Materials | Learned Storage garrison access intel 1936 | -10/Materials | Learned 2 Storage zone layouts 1996 | -10/Materials | Learned Storage security intel 2045 | -10/Materials | Entered Subcaves 2046 | -10/Subcaves | Approached by a straggling Scientist 2046 | -10/Subcaves | Identified exit to Materials 2205 | -10/Subcaves | Shifting Twisted Machinery released Sub. Shrapnel Launcher 2229 | -10/Subcaves | Shifting Twisted Machinery released Sub. Shrapnel Launcher 2231 | -10/Subcaves | Learned location of Storage (-7) 2554 | -10/Subcaves | Core integrity fell below 50% 2608 | -10/Subcaves | A swath of the cavern ceiling suddenly collapsed 3321 | -10/Subcaves | Visited 4L-MR0's lab 3356 | -10/Subcaves | Found Cargo Legs 3358 | -10/Subcaves | Attached Cargo Legs, gained temporary slots: Utility x2 3499 | -10/Subcaves | A swath of the cavern ceiling suddenly collapsed 3654 | -10/Subcaves | Build established: Subdweller-Mutant 3755 | -10/Subcaves | Spotted Guncrazy 3759 | -10/Subcaves | Spotted Double Barrel 3815 | -10/Subcaves | Destroyed Double Barrel 3839 | -10/Subcaves | Core integrity fell below 20% 3864 | -10/Subcaves | Destroyed by Guncrazy with Battle Rifle Last Messages --------------- 03538_ Acquired 11 matter. 03612_ Sub. Beam Cannon shoots sparks and powers down. 03614_ Dropped Broken Sub. Beam Cannon. 03768_ Destroyed EM Pulse Gun. 03771_ Critical hit (Burn: +25). 03785_ Destroyed Lgt. Ion Engine. 03801_ Destroyed Reflective Plating. 03805_ WB-PEP(u) builds Twisted Machinery. 03809_ Critical hit (Burn: +25). 03813_ Destroyed Arm. Wheel. 03815_ CPS modules swiftly deploy to protect Double Barrel components. 03815_ Double Barrel destroyed. 03823_ Critical hit (Destroy). 03826_ Scrap Shield destroyed. 03828_ Sub. Laser shoots sparks and powers down. 03832_ Critical hit (Burn: +26). 03858_ Shield Generator destroyed. 03860_ Temporary Utility slot lost. 03860_ Destroyed Lgt. Ion Engine. 03863_ Destroyed Med. Armor Plating. Map ----- +----------------------------------------------------+ | ???????????????##""## ##???######???????? | | ????????????????# ## #????????????????? | | ????????????????# ## #????????????????? | | ????????????????# # ##????????????????? | | ???????????????## ## #?????????????????? | | ???????????????#" ### #????????????????? | | ???????????????## #?## ???????????????? | | ???????????????##" ##?? #?????????????? | | ???????????????# #?? ????????????? | | ???????????????# #?? ??????????? | | ???????????????# ##?? """ ?????????? | | ???????????????# #??? """ ####????????? | | ???????????????#"" ##??"" #####???????????? | | ???????????????## #??#"" #??????????????? | | ???????????????## #????" #??????????????? | | ??????????????## ##?? ##??????????????? | | ??????????????# ### #??????????????? | | ??????????????#### ##??????????????? | | ?????????????????# ##?????????????? | | ?????????????????# ##????????????? | | ?????????????????# ## ??????? | | ?????????????????## ??????? | | ???????????????#### ??????? | | ???????????????# ## ??????? | | ???????????????## & ##?? ???????? | | ????????????????##@= #?????? ????????? | | ????????????????# M! #????????????? | | ????????????????#[#! ### ##????????????? | | ??????????????? ####?? ##?????????????? | | ????????????? ###????? #??????????????? | | ????????????# !????????? #?????????????? | | ????????????# !?????????? #?????????????? | | ????????????###??????????? #?????????????? | | ??????????????????????????? #?????????????? | | ??????????????????????????????????????????? | | ??????????????????????????????????????????? | | ??????????????????????????????????????????? | | ??????????????????????????????????????????? | | ??????????????????????????????????????????? | | ??????????????????????????????????????????? | | ??????????????????????????????????????????? | | ??????????????????????????????????????????? | | ??????????????????????????????????????????? | | ??????????????????????????????????????????? | | ??????????????????????????????????????????? | | ??????????????????????????????????????????? | | ??????????????????????????????????????????? | | ??????????????????????????????????????????? | | ??????????????????????????????????????????? | | ??????????????????????????????????????????? | +----------------------------------------------------+ Best States ------------- Heat Dissipation 25 Energy Generation 15 Energy Capacity 250 Matter Stores 300 Matter Capacity 300 Sight Range 16 Terrain Scan Density 10 Armor Coverage 800 Evasion (%) 50 Recoil Reduction 2 Trap Extractor Capacity 4 Item Schematics ----------------- Huge Storage Unit | -10/Materials | Hacked Robot Schematics ------------------ None Fabricated ------------ Nothing Repaired ---------- Nothing Studied --------- None Alien Tech Used ----------------- None Achievements -------------- None Challenges ------------ None Game ------ Seed MiniBattleMultirail Manual? 0 Play Time 00:24:44 Cumulative 1817.5 hours Start 2026.09.14 @ 18:24:01 End 2026.09.14 @ 18:50:40 Sessions 2 Manual Loads 0 Difficulty Rogue Special Mode None Game No. 549 Rogue 541 Adventurer 4 Explorer 4 Win Type - Total 77 Types 32/12/6/4/2/5/9/2/3/2 Lore% 98 Gallery% 96 Achievement% 93 Wizard Run 0 Options --------- Layout 0 ASCII 0 Keyboard 0 Movement Numpad Keybinds 0 Fullscreen 2 Font 18/SmallcapsGlow Map View 76x50 Zoom Use 3% Tactical HUD 1 Map Filters NONE Filters NONE Steam 1 RUN: 0e6f600b-c3d1-421e-b8e0-1d89d3065200